[Event "Late-Titled-Tuesday-Blitz-February-13-2024"]
[Site "Chess.com"]
[Date "2024.02.13"]
[Round "10"]
[White "Nemsko"]
[Black "nindjaxx8"]
[Result "1-0"]
[WhiteElo "2422"]
[BlackElo "2557"]
[TimeControl "180+1"]
[EndTime "15:55:38 PST"]
[Termination "Nemsko won by resignation"]

1. e4 {[%clk 0:03:00.9]} 1... e6 {[%clk 0:02:58.8]} 2. d4 {[%clk 0:02:59.1]}
2... d5 {[%clk 0:02:56.2]} 3. Nc3 {[%clk 0:02:56.7]} 3... Bb4 {[%clk 0:02:50.7]}
4. e5 {[%clk 0:02:55.5]} 4... c5 {[%clk 0:02:45.4]} 5. a3 {[%clk 0:02:55.2]}
5... Bxc3+ {[%clk 0:02:46]} 6. bxc3 {[%clk 0:02:56.1]} 6... Ne7 {[%clk
0:02:46.7]} 7. h4 {[%clk 0:02:52.2]} 7... Qc7 {[%clk 0:02:44.2]} 8. Nf3 {[%clk
0:02:48.1]} 8... Nbc6 {[%clk 0:02:39.2]} 9. h5 {[%clk 0:02:47]} 9... h6 {[%clk
0:02:38.3]} 10. Rh4 {[%clk 0:02:46.6]} 10... Bd7 {[%clk 0:02:16.7]} 11. Rf4
{[%clk 0:02:45.6]} 11... Rf8 {[%clk 0:02:11.3]} 12. Nh4 {[%clk 0:02:23.2]} 12...
O-O-O {[%clk 0:01:57.3]} 13. Qf3 {[%clk 0:02:11]} 13... cxd4 {[%clk 0:01:52.9]}
14. cxd4 {[%clk 0:02:10.6]} 14... Nxe5 {[%clk 0:01:49]} 15. Qg3 {[%clk
0:01:44.4]} 15... f6 {[%clk 0:00:43.1]} 16. Bd2 {[%clk 0:01:28.7]} 16... Nf5
{[%clk 0:00:35.4]} 17. Nxf5 {[%clk 0:01:27.6]} 17... exf5 {[%clk 0:00:36.3]} 18.
Qxg7 {[%clk 0:01:22.7]} 18... Rde8 {[%clk 0:00:33.8]} 19. Kd1 {[%clk 0:01:21]}
19... Rf7 {[%clk 0:00:24.3]} 20. Qxh6 {[%clk 0:01:17.6]} 20... Ba4 {[%clk
0:00:24.5]} 21. Rc1 {[%clk 0:01:14.6]} 21... Nc4 {[%clk 0:00:22]} 22. Bxc4
{[%clk 0:00:53.8]} 22... Qxc4 {[%clk 0:00:22.9]} 23. Be3 {[%clk 0:00:53.4]}
23... Qd3+ {[%clk 0:00:10.6]} 24. Ke1 {[%clk 0:00:50.8]} 24... Rxe3+ {[%clk
0:00:10.7]} 25. fxe3 {[%clk 0:00:51.7]} 25... Qxe3+ {[%clk 0:00:11.6]} 26. Kf1
{[%clk 0:00:50.6]} 26... Qxc1+ {[%clk 0:00:11.5]} 27. Kf2 {[%clk 0:00:51.2]}
27... Qxc2+ {[%clk 0:00:10.6]} 28. Kg3 {[%clk 0:00:51]} 28... Qc7 {[%clk
0:00:09.7]} 29. Kh3 {[%clk 0:00:42.5]} 29... Re7 {[%clk 0:00:06.1]} 30. Rf3
{[%clk 0:00:34.3]} 30... Bd1 {[%clk 0:00:05.3]} 31. Rxf5 {[%clk 0:00:28.6]}
31... a6 {[%clk 0:00:04.7]} 32. Qf8+ {[%clk 0:00:26.2]} 32... Qd8 {[%clk
0:00:02.6]} 33. Qxf6 {[%clk 0:00:20.6]} 33... Kb8 {[%clk 0:00:01.9]} 34. h6
{[%clk 0:00:19]} 34... Qe8 {[%clk 0:00:02]} 35. Qf8 {[%clk 0:00:18.2]} 35... Ka7
{[%clk 0:00:02]} 36. Qxe8 {[%clk 0:00:16.5]} 36... Rxe8 {[%clk 0:00:02.7]} 37.
g4 {[%clk 0:00:16.8]} 37... Bc2 {[%clk 0:00:02.8]} 38. Rxd5 {[%clk 0:00:15.7]}
38... Re6 {[%clk 0:00:01.7]} 39. g5 {[%clk 0:00:15.6]} 39... Kb6 {[%clk
0:00:01.8]} 40. Kg4 {[%clk 0:00:13.5]} 40... Re2 {[%clk 0:00:02]} 41. Rd6+
{[%clk 0:00:12.3]} 41... Kb5 {[%clk 0:00:02.2]} 42. Rd7 {[%clk 0:00:12]} 42...
Rg2+ {[%clk 0:00:02.6]} 43. Kf4 {[%clk 0:00:12.1]} 43... b6 {[%clk 0:00:03.2]}
44. Rd6 {[%clk 0:00:08.2]} 44... Rh2 {[%clk 0:00:03.3]} 45. Ke5 {[%clk
0:00:07.9]} 45... Rh5 {[%clk 0:00:03.3]} 46. Kf6 {[%clk 0:00:08.1]} 46... Rh2
{[%clk 0:00:03.7]} 47. Kg7 {[%clk 0:00:07.8]} 47... Rh5 {[%clk 0:00:03.7]} 48.
g6 {[%clk 0:00:07.2]} 48... Kc4 {[%clk 0:00:02.9]} 49. h7 {[%clk 0:00:07.5]}
49... Bxg6 {[%clk 0:00:02.8]} 50. Rxg6 {[%clk 0:00:07.2]} 50... b5 {[%clk
0:00:03.7]} 51. Rh6 {[%clk 0:00:06.7]} 51... Rg5+ {[%clk 0:00:03.3]} 52. Kf6
{[%clk 0:00:06.9]} 52... Rd5 {[%clk 0:00:03.6]} 53. h8=Q {[%clk 0:00:06.8]}
53... Rxd4 {[%clk 0:00:04.5]} 1-0

[Event "Late-Titled-Tuesday-Blitz-February-13-2024"]
[Site "Chess.com"]
[Date "2024.02.13"]
[Round "10"]
[White "ninguno46"]
[Black "Witik"]
[Result "1-0"]
[WhiteElo "2520"]
[BlackElo "2655"]
[TimeControl "180+1"]
[EndTime "15:55:44 PST"]
[Termination "ninguno46 won by resignation"]

1. e4 {[%clk 0:02:55]} 1... e5 {[%clk 0:03:00]} 2. Nf3 {[%clk 0:02:51.5]} 2...
Nc6 {[%clk 0:03:00.2]} 3. d4 {[%clk 0:02:51.9]} 3... exd4 {[%clk 0:03:00.3]} 4.
Bc4 {[%clk 0:02:52.5]} 4... Nf6 {[%clk 0:03:00.3]} 5. e5 {[%clk 0:02:52.6]} 5...
d5 {[%clk 0:03:00]} 6. Bb5 {[%clk 0:02:53]} 6... Ne4 {[%clk 0:03:00.2]} 7. Nxd4
{[%clk 0:02:52.8]} 7... Bd7 {[%clk 0:03:00.9]} 8. Bxc6 {[%clk 0:02:52.1]} 8...
bxc6 {[%clk 0:03:01.3]} 9. O-O {[%clk 0:02:52.1]} 9... Bc5 {[%clk 0:02:59.3]}
10. Be3 {[%clk 0:02:48.9]} 10... Bb6 {[%clk 0:02:55.9]} 11. Nc3 {[%clk
0:02:48.3]} 11... c5 {[%clk 0:02:34.5]} 12. Nb3 {[%clk 0:02:40.8]} 12... Nxc3
{[%clk 0:02:02.3]} 13. bxc3 {[%clk 0:02:39.2]} 13... d4 {[%clk 0:01:34.6]} 14.
cxd4 {[%clk 0:02:37.2]} 14... c4 {[%clk 0:01:35.3]} 15. Nc5 {[%clk 0:02:31.9]}
15... Bxc5 {[%clk 0:01:34.4]} 16. dxc5 {[%clk 0:02:31.4]} 16... O-O {[%clk
0:01:23.2]} 17. Qf3 {[%clk 0:02:13.8]} 17... Qe8 {[%clk 0:01:16.5]} 18. Qg3
{[%clk 0:02:12.1]} 18... Qe6 {[%clk 0:01:12]} 19. f4 {[%clk 0:02:08.9]} 19...
Qg6 {[%clk 0:00:58.8]} 20. Qxg6 {[%clk 0:01:51.1]} 20... hxg6 {[%clk 0:00:58.8]}
21. Rab1 {[%clk 0:01:46.9]} 21... Rab8 {[%clk 0:00:48.4]} 22. c3 {[%clk
0:01:42.4]} 22... Bf5 {[%clk 0:00:45.2]} 23. Rb4 {[%clk 0:01:40]} 23... a5
{[%clk 0:00:40.9]} 24. Ra4 {[%clk 0:01:37]} 24... Rb5 {[%clk 0:00:39.7]} 25. h3
{[%clk 0:01:16.7]} 25... Bd3 {[%clk 0:00:39.5]} 26. Rf2 {[%clk 0:01:13.7]} 26...
Ra8 {[%clk 0:00:38.8]} 27. g4 {[%clk 0:01:11.9]} 27... f6 {[%clk 0:00:22.3]} 28.
exf6 {[%clk 0:01:09.5]} 28... Re8 {[%clk 0:00:20.4]} 29. Bd4 {[%clk 0:01:08.2]}
29... Re1+ {[%clk 0:00:14.7]} 30. Kh2 {[%clk 0:01:07.9]} 30... gxf6 {[%clk
0:00:09.6]} 31. Bxf6 {[%clk 0:01:06.6]} 31... Rxc5 {[%clk 0:00:07.7]} 32. Bd4
{[%clk 0:01:05.1]} 32... Rb5 {[%clk 0:00:08.1]} 33. Kg3 {[%clk 0:01:03.5]} 33...
Kf7 {[%clk 0:00:06.1]} 34. Kh4 {[%clk 0:01:01.8]} 34... Rb8 {[%clk 0:00:05.7]}
35. Kg5 {[%clk 0:00:59]} 35... Rb5+ {[%clk 0:00:04.1]} 36. f5 {[%clk 0:00:58.7]}
36... gxf5 {[%clk 0:00:04.2]} 37. gxf5 {[%clk 0:00:58.8]} 37... Rg1+ {[%clk
0:00:04.5]} 38. Kf4 {[%clk 0:00:58.4]} 38... Rxf5+ {[%clk 0:00:04.2]} 39. Ke3
{[%clk 0:00:57.3]} 39... Re1+ {[%clk 0:00:04.5]} 40. Kd2 {[%clk 0:00:55.3]}
40... Rxf2+ {[%clk 0:00:04.9]} 41. Kxe1 {[%clk 0:00:53.7]} 41... Re2+ {[%clk
0:00:05.4]} 42. Kd1 {[%clk 0:00:53.3]} 42... Bc2+ {[%clk 0:00:02.9]} 43. Kxe2
{[%clk 0:00:52.9]} 43... Bxa4 {[%clk 0:00:03.8]} 44. Ke3 {[%clk 0:00:52.7]}
44... Bd7 {[%clk 0:00:04.1]} 45. h4 {[%clk 0:00:51.5]} 45... a4 {[%clk
0:00:03.1]} 46. a3 {[%clk 0:00:49.9]} 46... Kg6 {[%clk 0:00:03.4]} 47. Be5
{[%clk 0:00:48]} 47... c6 {[%clk 0:00:01.4]} 48. Kd4 {[%clk 0:00:47.4]} 48...
Kh5 {[%clk 0:00:01.7]} 49. Bf6 {[%clk 0:00:47]} 49... Be8 {[%clk 0:00:01.7]} 50.
Kc5 {[%clk 0:00:43.3]} 50... Kg6 {[%clk 0:00:02.6]} 51. Bd8 {[%clk 0:00:42.5]}
51... Kf5 {[%clk 0:00:02.6]} 52. Kb4 {[%clk 0:00:42.3]} 52... Ke6 {[%clk
0:00:03.1]} 53. Kxa4 {[%clk 0:00:41.2]} 53... Kd7 {[%clk 0:00:03.8]} 54. Bg5
{[%clk 0:00:40.7]} 54... Kd6 {[%clk 0:00:02.6]} 55. Bf4+ {[%clk 0:00:39.7]}
55... Kd7 {[%clk 0:00:02.1]} 56. Kb4 {[%clk 0:00:39.4]} 56... Kc8 {[%clk
0:00:02.7]} 57. Kxc4 {[%clk 0:00:37.8]} 57... Kd7 {[%clk 0:00:03.3]} 58. Kc5
{[%clk 0:00:38.1]} 58... Bg6 {[%clk 0:00:02.6]} 59. a4 {[%clk 0:00:38.2]} 59...
Bd3 {[%clk 0:00:03.1]} 60. a5 {[%clk 0:00:38.4]} 60... Be2 {[%clk 0:00:02.5]}
61. c4 {[%clk 0:00:37.3]} 61... Bf3 {[%clk 0:00:01.8]} 62. a6 {[%clk 0:00:36.9]}
62... Kc8 {[%clk 0:00:02.3]} 63. Kb6 {[%clk 0:00:36.4]} 63... c5 {[%clk
0:00:02.5]} 64. Kxc5 {[%clk 0:00:35.1]} 1-0

[Event "Late-Titled-Tuesday-Blitz-February-13-2024"]
[Site "Chess.com"]
[Date "2024.02.13"]
[Round "10"]
[White "sharkarton"]
[Black "Qingdom"]
[Result "1-0"]
[WhiteElo "2521"]
[BlackElo "2240"]
[TimeControl "180+1"]
[EndTime "15:55:44 PST"]
[Termination "sharkarton won by resignation"]

1. Nf3 {[%clk 0:02:51.3]} 1... c5 {[%clk 0:02:59]} 2. c4 {[%clk 0:02:50.8]} 2...
Nf6 {[%clk 0:02:57.7]} 3. g3 {[%clk 0:02:51.3]} 3... b6 {[%clk 0:02:56.7]} 4.
Bg2 {[%clk 0:02:51.3]} 4... Bb7 {[%clk 0:02:57]} 5. Nc3 {[%clk 0:02:49.1]} 5...
e6 {[%clk 0:02:57.2]} 6. O-O {[%clk 0:02:49.1]} 6... Be7 {[%clk 0:02:57.1]} 7.
d4 {[%clk 0:02:45.9]} 7... cxd4 {[%clk 0:02:56.9]} 8. Qxd4 {[%clk 0:02:45.4]}
8... d6 {[%clk 0:02:55.5]} 9. e4 {[%clk 0:02:40.1]} 9... Nbd7 {[%clk 0:02:53.3]}
10. Rd1 {[%clk 0:02:39.1]} 10... a6 {[%clk 0:02:52]} 11. b3 {[%clk 0:02:36.6]}
11... O-O {[%clk 0:02:51.1]} 12. Bb2 {[%clk 0:02:37.1]} 12... Qc7 {[%clk
0:02:48.4]} 13. Rac1 {[%clk 0:02:31.8]} 13... Rac8 {[%clk 0:02:47.3]} 14. Ne2
{[%clk 0:02:31.3]} 14... Rfd8 {[%clk 0:02:45.7]} 15. Ne1 {[%clk 0:02:23.6]}
15... Nc5 {[%clk 0:02:36.1]} 16. Nc3 {[%clk 0:02:18.3]} 16... Qb8 {[%clk
0:02:31.9]} 17. Nd3 {[%clk 0:02:08.5]} 17... Qa8 {[%clk 0:02:25.2]} 18. Nxc5
{[%clk 0:02:05.9]} 18... dxc5 {[%clk 0:02:24.5]} 19. Qe3 {[%clk 0:02:06.6]}
19... Rxd1+ {[%clk 0:01:59.4]} 20. Rxd1 {[%clk 0:02:07.5]} 20... Rd8 {[%clk
0:01:59.6]} 21. Rxd8+ {[%clk 0:02:01.3]} 21... Bxd8 {[%clk 0:01:57.3]} 22. Qd3
{[%clk 0:01:51.1]} 22... Bc7 {[%clk 0:01:51.7]} 23. f4 {[%clk 0:01:48.6]} 23...
Qd8 {[%clk 0:01:49.1]} 24. Qxd8+ {[%clk 0:01:41]} 24... Bxd8 {[%clk 0:01:49.1]}
25. e5 {[%clk 0:01:41.3]} 25... Bxg2 {[%clk 0:01:47.6]} 26. Kxg2 {[%clk
0:01:42.2]} 26... Nd7 {[%clk 0:01:43]} 27. Ne4 {[%clk 0:01:42.3]} 27... Be7
{[%clk 0:01:40.4]} 28. Kf3 {[%clk 0:01:35.9]} 28... f6 {[%clk 0:01:37]} 29. exf6
{[%clk 0:01:28.5]} 29... gxf6 {[%clk 0:01:36]} 30. g4 {[%clk 0:01:27.6]} 30...
Kf7 {[%clk 0:01:34.4]} 31. h4 {[%clk 0:01:19.8]} 31... f5 {[%clk 0:01:28.9]} 32.
Ng5+ {[%clk 0:01:09.5]} 32... Bxg5 {[%clk 0:01:28.7]} 33. hxg5 {[%clk
0:01:10.4]} 33... Kg6 {[%clk 0:01:24.7]} 34. Bc3 {[%clk 0:00:58]} 34... Nb8
{[%clk 0:00:44.6]} 35. a4 {[%clk 0:00:57.2]} 35... Nc6 {[%clk 0:00:44.1]} 36.
Kg3 {[%clk 0:00:49.4]} 36... a5 {[%clk 0:00:33.9]} 37. Kf3 {[%clk 0:00:48.4]}
37... Nd4+ {[%clk 0:00:24.6]} 38. Ke3 {[%clk 0:00:36.3]} 38... Nxb3 {[%clk
0:00:24.4]} 39. gxf5+ {[%clk 0:00:36.2]} 39... Kxf5 {[%clk 0:00:24]} 40. Bf6
{[%clk 0:00:32.1]} 40... Nd4 {[%clk 0:00:17.5]} 41. Bd8 {[%clk 0:00:25.4]} 41...
e5 {[%clk 0:00:15.1]} 42. fxe5 {[%clk 0:00:20]} 42... Kxe5 {[%clk 0:00:15.2]}
43. Bxb6 {[%clk 0:00:19.9]} 43... Nf5+ {[%clk 0:00:14.9]} 44. Kd3 {[%clk
0:00:17.2]} 44... Kf4 {[%clk 0:00:14.1]} 45. Bxc5 {[%clk 0:00:16.5]} 45... Kxg5
{[%clk 0:00:14.3]} 46. Bb6 {[%clk 0:00:15.7]} 46... h5 {[%clk 0:00:13.3]} 47.
Bxa5 {[%clk 0:00:16]} 47... h4 {[%clk 0:00:13.4]} 48. Bc7 {[%clk 0:00:15.2]}
48... Ng3 {[%clk 0:00:12.8]} 49. a5 {[%clk 0:00:14.8]} 49... Kg4 {[%clk
0:00:11]} 50. a6 {[%clk 0:00:14]} 50... h3 {[%clk 0:00:11.5]} 51. a7 {[%clk
0:00:14]} 51... h2 {[%clk 0:00:11.9]} 52. a8=Q {[%clk 0:00:13.8]} 52... h1=Q
{[%clk 0:00:11.7]} 53. Qxh1 {[%clk 0:00:13.8]} 53... Nxh1 {[%clk 0:00:11.7]} 54.
Ke3 {[%clk 0:00:11.4]} 54... Kf5 {[%clk 0:00:07.9]} 55. Kf3 {[%clk 0:00:10.8]}
55... Ke6 {[%clk 0:00:06]} 56. c5 {[%clk 0:00:11.2]} 56... Kd7 {[%clk
0:00:05.9]} 57. Bd6 {[%clk 0:00:11.6]} 57... Kc6 {[%clk 0:00:05.9]} 58. Kg2
{[%clk 0:00:11.9]} 1-0

[Event "Late-Titled-Tuesday-Blitz-February-13-2024"]
[Site "Chess.com"]
[Date "2024.02.13"]
[Round "10"]
[White "OK97"]
[Black "yaguigor"]
[Result "1-0"]
[WhiteElo "2834"]
[BlackElo "2638"]
[TimeControl "180+1"]
[EndTime "15:55:48 PST"]
[Termination "OK97 won on time"]

1. e4 {[%clk 0:03:00.9]} 1... c5 {[%clk 0:02:59.2]} 2. Nc3 {[%clk 0:03:01.1]}
2... Nc6 {[%clk 0:02:58.6]} 3. Bb5 {[%clk 0:03:01]} 3... Nd4 {[%clk 0:02:58.5]}
4. Nf3 {[%clk 0:03:01.4]} 4... e6 {[%clk 0:02:58.4]} 5. O-O {[%clk 0:03:00.9]}
5... a6 {[%clk 0:02:50.8]} 6. Bd3 {[%clk 0:03:00.8]} 6... Nc6 {[%clk 0:02:47.5]}
7. b3 {[%clk 0:03:00.6]} 7... d5 {[%clk 0:02:34.9]} 8. exd5 {[%clk 0:02:55.9]}
8... exd5 {[%clk 0:02:35.5]} 9. Re1+ {[%clk 0:02:55.9]} 9... Be7 {[%clk
0:02:33.3]} 10. Ba3 {[%clk 0:02:14.4]} 10... Be6 {[%clk 0:02:30.1]} 11. Ne5
{[%clk 0:02:09]} 11... Nxe5 {[%clk 0:02:06.6]} 12. Rxe5 {[%clk 0:02:09.9]} 12...
Nf6 {[%clk 0:02:01.7]} 13. Qe2 {[%clk 0:01:37.7]} 13... Bd6 {[%clk 0:01:45.3]}
14. Rxe6+ {[%clk 0:01:31.7]} 14... fxe6 {[%clk 0:01:44.7]} 15. Qxe6+ {[%clk
0:01:21.6]} 15... Qe7 {[%clk 0:01:45]} 16. Qf5 {[%clk 0:01:20.6]} 16... Qd7
{[%clk 0:00:55.4]} 17. Re1+ {[%clk 0:01:08.5]} 17... Kf7 {[%clk 0:00:54.6]} 18.
Qxd7+ {[%clk 0:00:52.7]} 18... Nxd7 {[%clk 0:00:53.7]} 19. Nxd5 {[%clk
0:00:53.5]} 19... Rae8 {[%clk 0:00:47]} 20. Rf1 {[%clk 0:00:46.7]} 20... b5
{[%clk 0:00:39.5]} 21. Bb2 {[%clk 0:00:35]} 21... Be5 {[%clk 0:00:38.4]} 22. Bc1
{[%clk 0:00:32.9]} 22... Nf6 {[%clk 0:00:37.5]} 23. Ne3 {[%clk 0:00:32.2]} 23...
g6 {[%clk 0:00:34.4]} 24. a4 {[%clk 0:00:32.4]} 24... Rb8 {[%clk 0:00:31.8]} 25.
f4 {[%clk 0:00:28.9]} 25... Bd4 {[%clk 0:00:30.9]} 26. f5 {[%clk 0:00:28.8]}
26... g5 {[%clk 0:00:28.2]} 27. axb5 {[%clk 0:00:27.5]} 27... axb5 {[%clk
0:00:27.4]} 28. c3 {[%clk 0:00:20]} 28... Be5 {[%clk 0:00:22.3]} 29. Ba3 {[%clk
0:00:10.9]} 29... Rhd8 {[%clk 0:00:21.6]} 30. Bb1 {[%clk 0:00:06.8]} 30... Rxd2
{[%clk 0:00:20.4]} 31. Bxc5 {[%clk 0:00:07.1]} 31... Bxc3 {[%clk 0:00:20.6]} 32.
b4 {[%clk 0:00:05.5]} 32... Bd4 {[%clk 0:00:20]} 33. Ba2+ {[%clk 0:00:05.4]}
33... Kg7 {[%clk 0:00:20.3]} 34. Bxd4 {[%clk 0:00:04.7]} 34... Rxd4 {[%clk
0:00:20.9]} 35. Be6 {[%clk 0:00:05]} 35... Rxb4 {[%clk 0:00:19.7]} 36. Rc1
{[%clk 0:00:04.8]} 36... Rb7 {[%clk 0:00:19.9]} 37. h3 {[%clk 0:00:04.6]} 37...
Re4 {[%clk 0:00:18.7]} 38. Nf1 {[%clk 0:00:04.6]} 38... b4 {[%clk 0:00:18.4]}
39. Nd2 {[%clk 0:00:05.3]} 39... Re2 {[%clk 0:00:16.2]} 40. Nb3 {[%clk
0:00:05.9]} 40... Re3 {[%clk 0:00:14.7]} 41. Rc8 {[%clk 0:00:05.7]} 41... Re7
{[%clk 0:00:12.1]} 42. Bc4 {[%clk 0:00:05]} 42... h5 {[%clk 0:00:08.5]} 43. Nd4
{[%clk 0:00:05.3]} 43... h4 {[%clk 0:00:07]} 44. Ne6+ {[%clk 0:00:05.7]} 44...
Kh6 {[%clk 0:00:06.7]} 45. Rh8+ {[%clk 0:00:04.9]} 45... Rh7 {[%clk 0:00:06.9]}
46. Rf8 {[%clk 0:00:05.1]} 46... Ne4 {[%clk 0:00:06.7]} 47. f6 {[%clk
0:00:05.3]} 47... Ng3 {[%clk 0:00:05.9]} 48. Kf2 {[%clk 0:00:04.9]} 48... Re4
{[%clk 0:00:04.5]} 49. Bb3 {[%clk 0:00:04]} 49... Ra7 {[%clk 0:00:03]} 50. Kf3
{[%clk 0:00:03.4]} 1-0

[Event "Late-Titled-Tuesday-Blitz-February-13-2024"]
[Site "Chess.com"]
[Date "2024.02.13"]
[Round "10"]
[White "martinmena"]
[Black "Nick12772"]
[Result "1-0"]
[WhiteElo "2185"]
[BlackElo "2344"]
[TimeControl "180+1"]
[EndTime "15:55:48 PST"]
[Termination "martinmena won on time"]

1. c4 {[%clk 0:03:00.9]} 1... Nf6 {[%clk 0:03:00.3]} 2. g3 {[%clk 0:02:57.3]}
2... g6 {[%clk 0:03:00.2]} 3. Bg2 {[%clk 0:02:57.6]} 3... Bg7 {[%clk 0:03:00.9]}
4. Nc3 {[%clk 0:02:57.8]} 4... O-O {[%clk 0:03:01.5]} 5. d3 {[%clk 0:02:58.4]}
5... c5 {[%clk 0:03:01]} 6. Bg5 {[%clk 0:02:57.1]} 6... Nc6 {[%clk 0:03:01.1]}
7. Qd2 {[%clk 0:02:56.6]} 7... d6 {[%clk 0:03:00]} 8. e4 {[%clk 0:02:57.1]} 8...
Nd4 {[%clk 0:02:57.7]} 9. Nge2 {[%clk 0:02:55.6]} 9... Ne8 {[%clk 0:02:50.7]}
10. O-O {[%clk 0:02:53.3]} 10... Nc7 {[%clk 0:02:49.5]} 11. Bh6 {[%clk
0:02:50.8]} 11... Nxe2+ {[%clk 0:02:41.7]} 12. Nxe2 {[%clk 0:02:49.4]} 12... Ne6
{[%clk 0:02:34.4]} 13. Bxg7 {[%clk 0:02:48.2]} 13... Kxg7 {[%clk 0:02:35.3]} 14.
f4 {[%clk 0:02:47.9]} 14... Qb6 {[%clk 0:02:15.1]} 15. f5 {[%clk 0:02:41.5]}
15... Nd4 {[%clk 0:02:10.8]} 16. Nxd4 {[%clk 0:02:38.3]} 16... cxd4 {[%clk
0:02:11.7]} 17. g4 {[%clk 0:02:17]} 17... f6 {[%clk 0:02:07.4]} 18. g5 {[%clk
0:01:53.6]} 18... Bd7 {[%clk 0:01:54.2]} 19. Rae1 {[%clk 0:01:37.7]} 19... a5
{[%clk 0:01:32.2]} 20. Qf4 {[%clk 0:01:09.5]} 20... Qxb2 {[%clk 0:01:21.8]} 21.
Rb1 {[%clk 0:01:08.5]} 21... Qe2 {[%clk 0:01:14.7]} 22. Rxb7 {[%clk 0:01:06.5]}
22... Rad8 {[%clk 0:01:15.4]} 23. gxf6+ {[%clk 0:00:47.4]} 23... Rxf6 {[%clk
0:01:11.7]} 24. Qg3 {[%clk 0:00:44]} 24... Qe3+ {[%clk 0:00:59.9]} 25. Qxe3
{[%clk 0:00:42.9]} 25... dxe3 {[%clk 0:01:00.8]} 26. fxg6 {[%clk 0:00:34.6]}
26... Rxf1+ {[%clk 0:01:00.7]} 27. Kxf1 {[%clk 0:00:32.5]} 27... Rf8+ {[%clk
0:00:39.5]} 28. Ke2 {[%clk 0:00:30.9]} 28... Rf2+ {[%clk 0:00:27.6]} 29. Kxe3
{[%clk 0:00:30.4]} 29... Rxg2 {[%clk 0:00:28.3]} 30. Rxd7 {[%clk 0:00:29.2]}
30... Rxa2 {[%clk 0:00:20.5]} 31. gxh7 {[%clk 0:00:26.3]} 31... Kxh7 {[%clk
0:00:15.8]} 32. Rxe7+ {[%clk 0:00:26.6]} 32... Kg8 {[%clk 0:00:15.5]} 33. Ra7
{[%clk 0:00:24.9]} 33... Rxh2 {[%clk 0:00:08.3]} 34. Rxa5 {[%clk 0:00:24.5]}
34... Kf7 {[%clk 0:00:09]} 35. Kd4 {[%clk 0:00:21.7]} 35... Ke6 {[%clk 0:00:09]}
36. Rg5 {[%clk 0:00:21.3]} 36... Rh6 {[%clk 0:00:08.5]} 37. Rg8 {[%clk
0:00:19.3]} 37... Kf7 {[%clk 0:00:07.8]} 38. Rc8 {[%clk 0:00:16.9]} 38... Ke7
{[%clk 0:00:08]} 39. Rb8 {[%clk 0:00:13.6]} 39... Rh5 {[%clk 0:00:07.6]} 40.
Rb7+ {[%clk 0:00:10.8]} 40... Ke6 {[%clk 0:00:08.1]} 41. Rb6 {[%clk 0:00:11.4]}
41... Ke7 {[%clk 0:00:08.4]} 42. Kc3 {[%clk 0:00:08.5]} 42... Rh3 {[%clk
0:00:06.1]} 43. Rb3 {[%clk 0:00:07.8]} 43... Rh5 {[%clk 0:00:06.3]} 44. Kd2
{[%clk 0:00:07.5]} 44... Rh2+ {[%clk 0:00:05.5]} 45. Ke3 {[%clk 0:00:07.5]}
45... Rh3+ {[%clk 0:00:06.1]} 46. Kf4 {[%clk 0:00:07.4]} 46... Ke6 {[%clk
0:00:06.7]} 47. Kg4 {[%clk 0:00:05.9]} 47... Re3 {[%clk 0:00:06.2]} 48. Kf4
{[%clk 0:00:05.6]} 48... Rh3 {[%clk 0:00:06.4]} 49. Ra3 {[%clk 0:00:04.4]} 49...
Kf6 {[%clk 0:00:05.1]} 50. Kg4 {[%clk 0:00:01.8]} 50... Re3 {[%clk 0:00:04.7]}
51. Kh5 {[%clk 0:00:01.6]} 51... Ke5 {[%clk 0:00:02.1]} 52. Kh4 {[%clk
0:00:02.3]} 1-0